fUSD/lending_fUSD_20250125
["ID","MTS","AMOUNT","RATE_DAILY","PERIOD"]
[350289111,1737771033239,-500.0,0.00019548,2]
[350289112,1737771033250,-500.0,0.00019548,2]
[350289113,1737771033259,-500.0,0.00019548,2]
[350289114,1737771033268,-500.0,0.00019548,2]
[350289115,1737771033278,-500.0,0.00019548,2]
[350289116,1737771033287,-529.26,0.00019548,2]
[350289117,1737771033296,-500.0,0.00019548,2]
[350289118,1737771033308,-524.36531271,0.00019548,2]
[350289119,1737771033318,-500.0,0.00019548,2]
[350289120,1737771033331,-607.98243751,0.00019548,2]
[350289121,1737771033341,-509.1545114,0.00019548,2]
[350289122,1737771033350,-500.0,0.00019548,2]
[350289123,1737771033360,-500.0,0.00019548,2]
[350289124,1737771033371,-500.0,0.00019548,2]
[350289125,1737771033380,-612.54,0.00019548,2]
[350289126,1737771033389,-500.0,0.00019548,2]
[350289127,1737771033399,-500.0,0.00019548,2]
[350289128,1737771033409,-547.85,0.00019548,2]
[350289129,1737771033418,-518.18304887,0.00019548,2]
[350289130,1737771033428,-500.0,0.00019548,2]
[350289131,1737771033437,-500.0,0.00019548,2]
[350289132,1737771033447,-513.00507208,0.00019548,2]
[350289133,1737771033456,-500.0,0.00019548,2]
[350289134,1737771033466,-526.81361991,0.00019548,2]
[350289135,1737771033476,-500.0,0.00019548,2]
[350289136,1737771033485,-338.30177044,0.00019548,2]
[350289137,1737771033494,-507.5256629,0.00019548,2]
[350289138,1737771033504,-532.89203337,0.00019548,2]
[350289139,1737771033513,-500.0,0.00019548,2]
[350289140,1737771033523,-500.0,0.00019548,2]
[350289141,1737771033533,-627.26,0.00019548,2]
[350289142,1737771033542,-500.0,0.00019548,2]
[350289143,1737771033552,-500.0,0.00019548,2]
[350289144,1737771033561,-500.0,0.00019548,2]
[350289145,1737771033570,-500.0,0.00019548,2]
[350289146,1737771033580,-500.0,0.00019548,2]
[350289147,1737771033591,-500.0,0.00019548,2]
[350289148,1737771033601,-500.0,0.00019548,2]
[350289149,1737771033610,-500.0,0.00019548,2]
[350289150,1737771033620,-519.17,0.00019548,2]
[350289151,1737771033629,-500.0,0.00019548,2]
[350289152,1737771033638,-500.0,0.00019548,2]
[350289153,1737771033649,-500.0,0.00019548,2]
[350289154,1737771033658,-500.0,0.00019548,2]
[350289155,1737771033667,-500.0,0.00019548,2]
[350289156,1737771033677,-555.067689,0.00019549,2]
[350289157,1737771033686,-500.0,0.00019549,2]
[350289158,1737771033695,-500.0,0.00019549,2]
[350289159,1737771033704,-500.0,0.00019549,2]
[350289160,1737771033714,-500.0,0.00019549,2]
[350289161,1737771033723,-500.0,0.00019549,2]
[350289162,1737771033732,-404.096746,0.00019549,2]
[350289163,1737771033740,-500.0,0.00019549,2]
[350289164,1737771033749,-500.0,0.00019549,2]
[350289165,1737771033757,-500.0,0.00019549,2]
[350289166,1737771033765,-500.0,0.00019549,2]
[350289167,1737771033773,-500.0,0.00019549,2]
[350289168,1737771033781,-500.0,0.00019549,2]
[350289169,1737771033790,-500.0,0.00019549,2]
[350289170,1737771033799,-500.0,0.00019549,2]
[350289171,1737771033808,-500.0,0.00019549,2]
[350289172,1737771033818,-500.0,0.00019549,2]
[350289173,1737771033827,-645.68,0.00019549,2]
[350289174,1737771033836,-500.0,0.00019549,2]
[350289175,1737771033845,-500.0,0.00019549,2]
[350289176,1737771033854,-500.0,0.00019549,2]
[350289177,1737771033863,-213.12934244,0.00019549,2]
[350289178,1737771033873,-500.0,0.00019549,2]
[350289179,1737771033882,-500.0,0.00019549,2]
[350289180,1737771033891,-500.0,0.00019549,2]
[350289181,1737771033901,-500.0,0.00019549,2]
[350289182,1737771033910,-500.0,0.00019549,2]
[350289183,1737771033920,-500.0,0.00019549,2]
[350289184,1737771033929,-500.0,0.00019549,2]
[350289185,1737771033939,-500.0,0.00019549,2]
[350289186,1737771033948,-500.0,0.00019549,2]
[350289187,1737771033958,-500.0,0.00019549,2]
[350289188,1737771033967,-500.0,0.00019549,2]
[350289189,1737771033977,-500.0,0.00019549,2]
[350289190,1737771033987,-500.0,0.00019549,2]
[350289191,1737771033997,-500.0,0.00019549,2]
[350289192,1737771034006,-500.0,0.00019549,2]
[350289193,1737771034016,-492.56270391,0.00019549,2]
[350289194,1737771034026,-500.0,0.00019549,2]
[350289195,1737771034036,-500.0,0.00019549,2]
[350289196,1737771034045,-500.0,0.00019549,2]
[350289197,1737771034054,-500.0,0.00019549,2]
[350289198,1737771034064,-500.0,0.00019549,2]
[350289199,1737771034073,-500.0,0.00019549,2]
[350289200,1737771034083,-450.95772507,0.00019549,2]
[350289201,1737771034092,-500.0,0.00019549,2]
[350289202,1737771034107,-500.0,0.00019549,2]
[350289203,1737771034124,-500.0,0.00019549,2]
[350289204,1737771034140,-225.12870146,0.00019555,2]
[350289205,1737771034156,-500.0,0.00019685,2]
[350289206,1737771034166,-500.0,0.00019685,2]
[350289207,1737771034176,-174.23,0.00019685,2]
[350289208,1737771034186,-511.16,0.00019685,2]
[350289209,1737771034196,-341.66,0.00019685,2]
[350289210,1737771034206,-500.0,0.00019685,2]
[350289211,1737771034216,-500.0,0.00019685,2]
[350289212,1737771034226,-500.0,0.00019685,2]
[350289213,1737771034236,-165.46,0.00019685,2]
[350289214,1737771034247,-500.0,0.00019685,2]
[350289215,1737771034257,-500.0,0.00019685,2]
[350289216,1737771034267,-556.51,0.00019685,2]
[350289217,1737771034277,-500.0,0.00019685,2]
[350289218,1737771034287,-530.54896119,0.00019685,2]
[350289219,1737771034298,-500.0,0.00019685,2]
[350289220,1737771034308,-500.0,0.00019685,2]
[350289221,1737771034320,-500.0,0.00019685,2]
[350289222,1737771034335,-500.0,0.00019685,2]
[350289223,1737771034344,-500.0,0.00019685,2]
[350289224,1737771034354,-500.0,0.00019685,2]
[350289225,1737771034363,-500.0,0.00019685,2]
[350289226,1737771034374,-500.0,0.00019685,2]
[350289227,1737771034384,-500.0,0.00019685,2]
[350289228,1737771034393,-500.0,0.00019685,2]
[350289229,1737771034405,-500.0,0.00019685,2]
[350289230,1737771034414,-500.0,0.00019686,2]
[350289231,1737771034424,-500.0,0.00019686,2]
[350289232,1737771034434,-500.0,0.00019686,2]
[350289233,1737771034444,-500.0,0.00019686,2]
[350289234,1737771034453,-513.42313852,0.00019686,2]
[350289235,1737771034463,-500.0,0.00019686,2]
[350289236,1737771034472,-500.0,0.00019686,2]
[350289237,1737771034483,-500.0,0.00019686,2]
[350289238,1737771034492,-500.0,0.00019686,2]
[350289239,1737771034502,-500.0,0.00019686,2]
[350289240,1737771034512,-299.0,0.00019686,2]
[350289241,1737771034522,-520.27984827,0.00019686,2]
[350289242,1737771034538,-453.85,0.00019686,2]
[350289243,1737771034547,-413.91,0.00019686,2]
[350289244,1737771034556,-491.21,0.00019686,2]
[350289245,1737771034566,-336.81,0.00019686,2]
[350289246,1737771034576,-500.0,0.00019686,2]
[350289247,1737771034586,-500.0,0.00019686,2]
[350289248,1737771034595,-500.0,0.00019686,2]
[350289249,1737771034605,-500.0,0.00019686,2]
[350289250,1737771034615,-500.0,0.00019686,2]
[350289251,1737771034624,-161.08,0.00019686,2]
[350289252,1737771034634,-588.68,0.00019686,2]
[350289253,1737771034643,-413.71,0.00019686,2]
[350289254,1737771034652,-500.0,0.00019686,2]
[350289255,1737771034662,-500.0,0.00019686,2]
[350289256,1737771034671,-293.72,0.00019686,2]
[350289257,1737771034681,-500.0,0.00019686,2]
[350289258,1737771034690,-500.0,0.00019686,2]
[350289259,1737771034699,-500.0,0.00019686,2]
[350289260,1737771034709,-500.0,0.00019686,2]
[350289261,1737771034718,-598.94,0.00019686,2]
[350289262,1737771034728,-511.20549124,0.00019686,2]
[350289263,1737771034737,-605.19,0.00019686,2]
[350289264,1737771034747,-589.93,0.00019686,2]
[350289265,1737771034756,-500.0,0.00019686,2]
[350289266,1737771034765,-500.0,0.00019686,2]
[350289267,1737771034774,-500.0,0.00019686,2]
[350289268,1737771034783,-500.0,0.00019686,2]
[350289269,1737771034793,-225.12870146,0.00019693,2]
[350289270,1737771034802,-410.07,0.000197,2]
[350289271,1737771034812,-405.82,0.00019822,2]
[350289272,1737771034821,-500.0,0.00019822,2]
[350289273,1737771034830,-500.0,0.00019822,2]
[350289274,1737771034839,-625.87,0.00019822,2]
[350289275,1737771034849,-395.77,0.00019822,2]
[350289276,1737771034858,-500.0,0.00019822,2]
[350289277,1737771034867,-470.56421923,0.00019822,2]
[350289278,1737771034876,-435.52,0.00019822,2]
[350289279,1737771034886,-433.67,0.00019822,2]
[350289280,1737771034895,-212.48,0.00019822,2]
[350289281,1737771034904,-210.8,0.00019822,2]
[350289282,1737771034913,-206.45,0.00019822,2]
[350289283,1737771034922,-500.0,0.00019822,2]
[350289284,1737771034935,-500.0,0.00019822,2]
[350289285,1737771034944,-500.0,0.00019823,2]
[350289286,1737771034953,-379.82,0.00019823,2]
[350289287,1737771034963,-500.0,0.00019823,2]
[350289288,1737771034972,-500.0,0.00019823,2]
[350289289,1737771034981,-543.3538951,0.00019823,2]
[350289290,1737771034990,-500.0,0.00019823,2]
[350289291,1737771034999,-500.0,0.00019823,2]
[350289292,1737771035008,-500.0,0.00019823,2]
[350289293,1737771035017,-216.76,0.00019823,2]
[350289294,1737771035026,-445.87,0.00019823,2]
[350289295,1737771035035,-331.09,0.00019823,2]
[350289296,1737771035044,-500.0,0.00019823,2]
[350289297,1737771035053,-211.94,0.00019823,2]
[350289298,1737771035063,-500.0,0.00019823,2]
[350289299,1737771035071,-500.0,0.00019823,2]
[350289300,1737771035081,-550.66,0.00019823,2]
[350289301,1737771035090,-500.0,0.00019823,2]
[350289302,1737771035098,-234.11,0.00019823,2]
[350289303,1737771035108,-533.15,0.00019823,2]
[350289304,1737771035117,-543.11,0.00019823,2]
[350289305,1737771035126,-500.0,0.00019823,2]
[350289306,1737771035135,-225.12870146,0.00019831,2]
[350289307,1737771035144,-250.0,0.00019868,2]
[350289308,1737771035154,-233.12464208,0.00019959,2]
[350289309,1737771035163,-188.90303964,0.00019959,2]
[350289310,1737771035175,-495.0,0.00019959,2]
[350289311,1737771035185,-500.0,0.00019959,2]
[350289312,1737771035195,-383.02,0.00019959,2]
[350289313,1737771035204,-469.75,0.0001996,2]
[350289314,1737771035213,-500.0,0.0001996,2]
[350289315,1737771035222,-500.0,0.0001996,2]
[350289316,1737771035231,-500.0,0.0001996,2]
[350289317,1737771035241,-500.0,0.0001996,2]
[350289318,1737771035250,-500.0,0.0001996,2]
[350289319,1737771035259,-500.0,0.0001996,2]
[350289320,1737771035269,-163.29,0.0001996,2]
[350289321,1737771035278,-500.0,0.0001996,2]
[350289322,1737771035288,-500.0,0.0001996,2]
[350289323,1737771035297,-500.0,0.0001996,2]
[350289324,1737771035306,-225.12870146,0.00019969,2]
[350289325,1737771035315,-1912.82947,0.0002,2]
[350289326,1737771035328,-152.49,0.00020088,2]
[350289327,1737771035337,-3457.18840678,0.00020092,2]
[350289328,1737771035346,-472.68,0.00020096,2]
[350289329,1737771035356,-566.95,0.00020097,2]
[350289330,1737771035368,-500.0,0.00020097,2]
[350289331,1737771035377,-500.0,0.00020097,2]
[350289332,1737771035387,-500.0,0.00020097,2]
[350289333,1737771035397,-500.0,0.00020097,2]
[350289334,1737771035406,-500.0,0.00020097,2]
[350289335,1737771035415,-500.0,0.00020097,2]
[350289336,1737771035425,-500.0,0.00020097,2]
[350289337,1737771035434,-500.0,0.00020097,2]
[350289338,1737771035443,-225.12870146,0.00020107,2]
[350289339,1737771035452,-407.93,0.00020234,2]
[350289340,1737771035462,-640.59,0.00020234,2]
[350289341,1737771035471,-500.0,0.00020234,2]
[350289342,1737771035480,-500.0,0.00020234,2]
[350289343,1737771035489,-365.77,0.00020234,2]
[350289344,1737771035499,-500.0,0.00020234,2]
[350289345,1737771035508,-500.0,0.00020234,2]
[350289346,1737771035517,-493.29,0.00020234,2]
[350289347,1737771035527,-152.1,0.00020244,2]
[350289348,1737771035536,-225.12870146,0.00020245,2]
[350289349,1737771035545,-356.92,0.0002025,2]
[350289350,1737771035555,-2874.421,0.00020314,2]
[350289351,1737771035564,-295.56733943,0.00020356,2]
[350289352,1737771035573,-152.0,0.0002037,3]
[350289353,1737771035582,-500.0,0.00020371,2]
[350289354,1737771035591,-462.12,0.00020371,2]
[350289355,1737771035600,-500.0,0.00020371,2]
[350289356,1737771035609,-225.12870146,0.00020383,2]
[350289357,1737771035619,-218.23013481,0.00020448,2]
[350289358,1737771035628,-250.0,0.00020488,2]
[350289359,1737771035637,-382.37,0.00020508,2]
[350289360,1737771035647,-500.0,0.00020508,2]
[350289361,1737771035656,-225.12870146,0.00020521,2]
[350289362,1737771035665,-177.58,0.00020548,2]
[350289363,1737771035674,-200.0,0.00020633,2]
[350289364,1737771035684,-214.57,0.00020645,2]
[350289365,1737771035694,-225.12870146,0.00020659,2]
[350289366,1737771035703,-3457.18840678,0.00020694,2]
[350289367,1737771035713,-502.79062154,0.00020724,2]
[350289368,1737771035723,-502.02087447,0.00020724,2]
[350289369,1737771035733,-502.50501301,0.00020724,2]
[350289370,1737771035742,-503.77049414,0.00020724,2]
[350289371,1737771035752,-500.76980158,0.00020724,2]
[350289372,1737771035761,-502.46906073,0.00020724,2]
[350289373,1737771035771,-502.59108862,0.00020724,2]
[350289374,1737771035780,-502.48681221,0.00020724,2]
[350289375,1737771035790,-501.05895319,0.00020724,2]
[350289376,1737771035799,-502.57829259,0.00020724,2]
[350289377,1737771035808,-502.490812,0.00020724,2]
[350289378,1737771035817,-504.17060224,0.00020724,2]
[350289379,1737771035826,-504.62064347,0.00020724,2]
[350289380,1737771035836,-538.20462622,0.00020724,2]
[350289381,1737771035845,-507.92182115,0.00020724,2]
[350289382,1737771035855,-512.83374236,0.00020724,2]
[350289383,1737771035864,-502.73252386,0.00020724,2]
[350289384,1737771035873,-502.66184654,0.00020724,2]
[350289385,1737771035883,-475.30550091,0.00020724,2]
[350289386,1737771035892,-503.13095786,0.00020724,2]
[350289387,1737771035902,-500.20166481,0.00020724,2]
[350289388,1737771035912,-502.48394063,0.00020724,2]
[350289389,1737771035921,-500.0,0.00020724,2]
[350289390,1737771035931,-500.0,0.00020724,2]
[350289391,1737771035940,-500.0,0.00020724,2]
[350289392,1737771035949,-500.0,0.00020724,2]
[350289393,1737771035959,-500.0,0.00020724,2]
[350289394,1737771035968,-500.0,0.00020724,2]
[350289395,1737771035977,-500.0,0.00020724,2]
[350289396,1737771035986,-500.0,0.00020724,2]
[350289397,1737771035994,-503.8019963,0.00020724,2]
[350289398,1737771036003,-589.20193389,0.00020724,2]
[350289399,1737771036012,-329.97284695,0.00020724,2]
[350289400,1737771036021,-500.0,0.00020724,2]
[350289401,1737771036030,-509.11209876,0.00020724,2]
[350289402,1737771036039,-586.46,0.00020724,2]
[350289403,1737771036048,-503.73621431,0.00020724,2]
[350289404,1737771036057,-504.35766144,0.00020724,2]
[350289405,1737771036067,-503.23315258,0.00020724,2]
[350289406,1737771036076,-505.85975761,0.00020724,2]
[350289407,1737771036085,-447.89485021,0.00020724,2]
[350289408,1737771036094,-502.15507489,0.00020724,2]
[350289409,1737771036103,-501.97066317,0.00020724,2]
[350289410,1737771036113,-504.59027692,0.00020724,2]
[350289411,1737771036122,-503.59058404,0.00020724,2]
[350289412,1737771036131,-504.12895988,0.00020724,2]
[350289413,1737771036140,-497.165442,0.00020724,2]
[350289414,1737771036150,-507.29970123,0.00020724,2]
[350289415,1737771036159,-647.38889424,0.00020724,2]
[350289416,1737771036168,-582.91244201,0.00020724,2]
[350289417,1737771036177,-5000.0,0.00020761,2]
[350289418,1737771036187,-225.12870146,0.00020797,2]
[350289419,1737771036197,-518.97248603,0.00020861,2]
[350289420,1737771036206,-500.0,0.00020861,2]
[350289421,1737771036215,-346.4156453,0.00020861,2]
[350289422,1737771036225,-155.85,0.00020861,2]
[350289423,1737771036234,-500.0,0.00020861,2]
[350289424,1737771036244,-500.0,0.00020861,2]
[350289425,1737771036254,-225.12870146,0.00020934,2]
[350289426,1737771036263,-152.0,0.00020973,4]
[350289427,1737771036272,-356.92,0.00020973,2]
[350289428,1737771036281,-500.0,0.00020998,2]
[350289429,1737771036290,-471.13,0.00020998,2]
[350289430,1737771036299,-693.89,0.00021043,2]
[350289431,1737771036309,-225.12870146,0.00021072,2]
[350289432,1737771036319,-2777.04275528,0.00021082,2]
[350289433,1737771036331,-2486.31625105,0.00021082,2]
[350289434,1737771036340,-500.0,0.00021135,2]
[350289435,1737771036349,-2486.31625102,0.00021173,2]
[350289436,1737771036359,-506.46373542,0.00021182,2]
[350289437,1737771036369,-500.0,0.00021182,2]
[350289438,1737771036378,-500.0,0.00021182,2]
[350289439,1737771036388,-500.0,0.00021182,2]
[350289440,1737771036397,-500.0,0.00021182,2]
[350289441,1737771036406,-500.0,0.00021182,2]
[350289442,1737771036416,-521.65,0.00021182,2]
[350289443,1737771036425,-532.03182021,0.00021182,2]
[350289444,1737771036434,-512.71105826,0.00021182,2]
[350289445,1737771036443,-615.71483036,0.00021182,2]
[350289446,1737771036453,-500.0,0.00021182,2]
[350289447,1737771036462,-501.48980554,0.00021182,2]
[350289448,1737771036472,-522.47,0.00021182,2]
[350289449,1737771036482,-500.0,0.00021182,2]
[350289450,1737771036491,-589.58980692,0.00021182,2]
[350289451,1737771036501,-500.0,0.00021182,2]
[350289452,1737771036511,-381.4355862,0.00021182,2]
[350289453,1737771036520,-500.0,0.00021182,2]
[350289454,1737771036529,-507.97833124,0.00021182,2]
[350289455,1737771036539,-520.02,0.00021182,2]
[350289456,1737771036548,-500.0,0.00021182,2]
[350289457,1737771036558,-185.84440732,0.00021182,2]
[350289458,1737771036567,-494.0,0.00021182,2]
[350289459,1737771036576,-500.0,0.00021182,2]
[350289460,1737771036586,-500.0,0.00021182,2]
[350289461,1737771036595,-500.0,0.00021182,2]
[350289462,1737771036604,-500.0,0.00021182,2]
[350289463,1737771036614,-500.0,0.00021182,2]
[350289464,1737771036623,-500.0,0.00021182,2]
[350289465,1737771036633,-500.0,0.00021182,2]
[350289466,1737771036642,-500.0,0.00021182,2]
[350289467,1737771036651,-500.0,0.00021182,2]
[350289468,1737771036660,-176.92279485,0.00021182,2]
[350289469,1737771036670,-509.79515912,0.00021182,2]
[350289470,1737771036682,-503.88753735,0.00021182,2]
[350289471,1737771036692,-500.0,0.00021182,2]
[350289472,1737771036702,-500.0,0.00021182,2]
[350289473,1737771036712,-507.45591572,0.00021182,2]
[350289474,1737771036721,-500.0,0.00021182,2]
[350289475,1737771036732,-500.0,0.00021182,2]
[350289476,1737771036868,-500.0,0.00021182,2]
[350289477,1737771036878,-500.0,0.00021182,2]
[350289478,1737771036889,-508.47099298,0.00021182,2]
[350289479,1737771036902,-500.0,0.00021182,2]
[350289480,1737771036911,-500.0,0.00021182,2]
[350289481,1737771036922,-516.34500088,0.00021182,2]
[350289482,1737771036932,-512.8145792,0.00021182,2]
[350289483,1737771036941,-360.99100293,0.00021182,2]
[350289484,1737771036950,-509.49066457,0.00021182,2]
[350289485,1737771036960,-500.0,0.00021182,2]
[350289486,1737771036970,-503.44016816,0.00021182,2]
[350289487,1737771036980,-497.0,0.00021182,2]
[350289488,1737771036989,-500.0,0.00021182,2]
[350289489,1737771037000,-503.01366687,0.00021182,2]
[350289490,1737771037010,-527.02942422,0.00021182,2]
[350289491,1737771037019,-500.0,0.00021182,2]
[350289492,1737771037029,-513.5726549,0.00021182,2]
[350289493,1737771037039,-500.0,0.00021182,2]
[350289494,1737771037048,-508.99146662,0.00021182,2]
[350289495,1737771037059,-500.0,0.00021182,2]
[350289496,1737771037069,-476.25552823,0.00021182,2]
[350289497,1737771037079,-504.96691585,0.00021182,2]
[350289498,1737771037089,-505.13611335,0.00021182,2]
[350289499,1737771037098,-500.0,0.00021182,2]
[350289500,1737771037108,-500.0,0.00021182,2]
[350289501,1737771037117,-505.00962114,0.00021182,2]
[350289502,1737771037127,-510.9467084,0.00021182,2]
[350289503,1737771037136,-495.0,0.00021182,2]
[350289504,1737771037146,-503.54062254,0.00021182,2]
[350289505,1737771037155,-500.0,0.00021182,2]
[350289506,1737771037164,-500.0,0.00021182,2]
[350289507,1737771037174,-504.07846951,0.00021182,2]
[350289508,1737771037184,-508.62818426,0.00021182,2]
[350289509,1737771037193,-507.75588498,0.00021182,2]
[350289510,1737771037203,-500.0,0.00021182,2]
[350289511,1737771037213,-200.0,0.00021182,2]
[350289512,1737771037222,-519.70185395,0.00021182,2]
[350289513,1737771037232,-643.8507142,0.00021182,2]
[350289514,1737771037243,-507.62563578,0.00021182,2]
[350289515,1737771037252,-500.0,0.00021182,2]
[350289516,1737771037261,-500.0,0.00021182,2]
[350289517,1737771037271,-505.84785182,0.00021182,2]
[350289518,1737771037280,-514.06746,0.00021182,2]
[350289519,1737771037290,-500.0,0.00021182,2]
[350289520,1737771037299,-505.76606778,0.00021182,2]
[350289521,1737771037309,-500.0,0.00021182,2]
[350289522,1737771037319,-513.16247589,0.00021182,2]
[350289523,1737771037333,-500.0,0.00021182,2]
[350289524,1737771037342,-500.0,0.00021182,2]
[350289525,1737771037351,-500.0,0.00021182,2]
[350289526,1737771037361,-500.0,0.00021182,2]
[350289527,1737771037371,-500.0,0.00021182,2]
[350289528,1737771037380,-505.44040198,0.00021182,2]
[350289529,1737771037389,-500.0,0.00021182,2]
[350289530,1737771037399,-500.0,0.00021182,2]
[350289531,1737771037408,-500.0,0.00021182,2]
[350289532,1737771037417,-500.0,0.00021182,2]
[350289533,1737771037427,-417.77073017,0.00021182,2]
[350289534,1737771037436,-359.56472083,0.00021182,2]
[350289535,1737771037445,-508.19084603,0.00021182,2]
[350289536,1737771037454,-500.0,0.00021182,2]
[350289537,1737771037463,-500.0,0.00021182,2]
[350289538,1737771037473,-500.0,0.00021182,2]
[350289539,1737771037485,-500.0,0.00021182,2]
[350289540,1737771037495,-504.27832581,0.00021182,2]
[350289541,1737771037504,-500.0,0.00021182,2]
[350289542,1737771037513,-500.0,0.00021182,2]
[350289543,1737771037523,-500.0,0.00021182,2]
[350289544,1737771037532,-500.0,0.00021182,2]
[350289545,1737771037542,-500.0,0.00021182,2]
[350289546,1737771037552,-500.0,0.00021182,2]
[350289547,1737771037562,-500.0,0.00021182,2]
[350289548,1737771037571,-500.0,0.00021182,2]
[350289549,1737771037580,-500.0,0.00021182,2]
[350289550,1737771037591,-500.0,0.00021182,2]
[350289551,1737771037601,-500.0,0.00021182,2]
[350289552,1737771037610,-630.23,0.00021182,2]
[350289553,1737771037620,-500.0,0.00021182,2]
[350289554,1737771037630,-500.0,0.00021182,2]
[350289555,1737771037639,-512.47321731,0.00021182,2]
[350289556,1737771037648,-500.0,0.00021182,2]
[350289557,1737771037657,-505.30677279,0.00021182,2]
[350289558,1737771037667,-502.64368994,0.00021182,2]
[350289559,1737771037676,-488.47400823,0.00021182,2]
[350289560,1737771037685,-506.89313206,0.00021182,2]
[350289561,1737771037694,-505.79091356,0.00021182,2]
[350289562,1737771037704,-506.69979259,0.00021182,2]
[350289563,1737771037713,-504.04088119,0.00021182,2]
[350289564,1737771037722,-500.0,0.00021182,2]
[350289565,1737771037734,-507.22933696,0.00021182,2]
[350289566,1737771037743,-535.52497265,0.00021182,2]
[350289567,1737771037753,-500.0,0.00021182,2]
[350289568,1737771037763,-510.88277429,0.00021182,2]
[350289569,1737771037773,-500.0,0.00021182,2]
[350289570,1737771037782,-521.07167863,0.00021182,2]
[350289571,1737771037792,-500.0,0.00021182,2]
[350289572,1737771037801,-500.0,0.00021182,2]
[350289573,1737771037810,-514.36375729,0.00021182,2]
[350289574,1737771037820,-500.0,0.00021182,2]
[350289575,1737771037829,-500.0,0.00021182,2]
[350289576,1737771037838,-500.0,0.00021182,2]
[350289577,1737771037848,-503.98649299,0.00021182,2]
[350289578,1737771037856,-510.68456763,0.00021182,2]
[350289579,1737771037866,-503.90026291,0.00021182,2]
[350289580,1737771037875,-504.84702578,0.00021182,2]
[350289581,1737771037884,-505.68358235,0.00021182,2]
[350289582,1737771037894,-500.0,0.00021182,2]
[350289583,1737771037903,-502.33743639,0.00021182,2]
[350289584,1737771037912,-503.76211929,0.00021182,2]
[350289585,1737771037922,-524.38538132,0.00021182,2]
[350289586,1737771037931,-513.52877287,0.00021182,2]
[350289587,1737771037940,-505.25500813,0.00021182,2]
[350289588,1737771037950,-504.12293205,0.00021182,2]
[350289589,1737771037960,-508.96518186,0.00021182,2]
[350289590,1737771037970,-551.87339369,0.00021182,2]
[350289591,1737771037982,-506.10642073,0.00021182,2]
[350289592,1737771037992,-509.74352903,0.00021182,2]
[350289593,1737771038001,-502.46836353,0.00021182,2]
[350289594,1737771038011,-500.0,0.00021182,2]
[350289595,1737771038020,-500.0,0.00021182,2]
[350289596,1737771038029,-475.17811064,0.00021182,2]
[350289598,1737771038039,-500.0,0.00021182,2]
[350289599,1737771038048,-500.0,0.00021182,2]
[350289601,1737771038057,-517.50725168,0.00021182,2]
[350289603,1737771038067,-504.94647649,0.00021182,2]
[350289605,1737771038076,-514.95917736,0.00021182,2]
[350289607,1737771038086,-500.0,0.00021182,2]
[350289609,1737771038095,-500.0,0.00021182,2]
[350289611,1737771038104,-515.73829643,0.00021182,2]
[350289613,1737771038114,-461.36198131,0.00021182,2]
[350289615,1737771038123,-585.22939648,0.00021182,2]
[350289618,1737771038133,-504.66420403,0.00021182,2]
[350289621,1737771038142,-511.36942019,0.00021182,2]
[350289623,1737771038151,-549.54006323,0.00021182,2]
[350289625,1737771038161,-509.96828623,0.00021182,2]